[Event "Skalica SCHAEFFLER Open 2019"]
[Site "Skalica"]
[Date "2019.08.31"]
[Round "9.3"]
[White "Romanova, Ela"]
[Black "Londin, Lukas Vojtech"]
[Result "0-1"]
[ECO "B00"]
[WhiteElo "1337"]
[BlackElo "1415"]
[Annotator "NA"]
[PlyCount "20"]
[EventDate "2019.08.25"]
[EventType "swiss"]
[EventCountry "SVK"]
[SourceTitle "playchess.com"]
[Source "ChessBase"]
[SourceQuality "1"]
[TimeControl "40/5400+30:1800+30"]

1. e4 {[%emt 0:17:43]} b6 {[%emt 0:00:00]} 2. d4 {[%emt 0:14:24]} Bb7 {[%emt 0:00:10]} 3. Bd3 {[%emt 0:00:30]} e6 {[%emt 0:00:30]} 4. Nc3 {[%emt 0:00:30]} Nf6 {[%emt 0:00:30]} 5. Nf3 {[%emt 0:00:30]} c5 {[%emt 0:00:30]} 6. Bd2 {[%emt 0:00:30]} c4 {[%emt 0:00:30]} 7. Bxc4 {[%emt 0:00:30]} Nxe4 {[%emt 0:00:30]} 8. Qe2 {[%emt 0:00:30]} Nxd2 {[%emt 0:00:30]} 9. Qxd2 {[%emt 0:00:30]} Bd6 {[%emt 0:00:30]} 10. h3 {[%emt 0:00:30]} O-O {[%emt 0:00:30]} 0-1

[Event "Skalica SCHAEFFLER Open 2019"]
[Site "Skalica"]
[Date "2019.08.31"]
[Round "9.4"]
[White "Benci, Rudolf"]
[Black "Krakovsky Peter"]
[Result "1-0"]
[ECO "D02"]
[WhiteElo "1635"]
[BlackElo "1000"]
[Annotator "NA"]
[PlyCount "47"]
[EventDate "2019.08.25"]
[EventType "swiss"]
[EventCountry "SVK"]
[SourceTitle "playchess.com"]
[Source "ChessBase"]
[SourceQuality "1"]
[TimeControl "40/5400+30:1800+30"]

1. d4 {[%emt 0:02:34]} Nf6 {[%emt 0:00:08]} 2. Bf4 {[%emt 0:00:01]} d5 {[%emt 0:01:52]} 3. e3 {[%emt 0:00:06]} e6 {[%emt 0:00:57]} 4. c3 {[%emt 0:00:32]} c5 {[%emt 0:01:20]} 5. Nd2 {[%emt 0:00:00]} Bd7 {[%emt 0:00:54]} 6. Bd3 {[%emt 0:00:00]} Be7 {[%emt 0:01:19]} 7. Ngf3 {[%emt 0:00:19]} Nc6 {[%emt 0:00:19]} 8. Ne5 {[%emt 0:00:07]} O-O {[%emt 0:01:24]} 9. h4 {[%emt 0:00:42]} c4 {[%emt 0:01:02]} 10. Bc2 {[%emt 0:00:08]} Be8 {[%emt 0:00:47]} 11. g4 {[%emt 0:04:42]} Nxe5 {[%emt 0:00:48]} 12. dxe5 {[%emt 0:00:10]} Nd7 {[%emt 0:00:22]} 13. g5 {[%emt 0:01:22]} f5 {[%emt 0:00:11]} 14. gxf6 {[%emt 0:01:13]} gxf6 {[%emt 0:00:27]} 15. Bh6 {[%emt 0:05:14]} Nxe5 {[%emt 0:02:35]} 16. Rg1+ {[%emt 0:04:24]} Kh8 {[%emt 0:00:36]} 17. Bg7+ {[%emt 0:02:01]} Kg8 {[%emt 0:00:31]} 18. Bxf8+ {[%emt 0:07:32]} Kxf8 {[%emt 0:00:54]} 19. Bxh7 {[%emt 0:00:27]} Bf7 {[%emt 0:00:27]} 20. Nf3 {[%emt 1:08:26]} Bh5 {[%emt 1:23:07]} 21. Rg8+ {[%emt 0:00:30]} Kf7 {[%emt 0:00:30]} 22. Nxe5+ {[%emt 0:00:30]} fxe5 {[%emt 0:00:30]} 23. Qxh5+ {[%emt 0:00:30]} Kf6 {[%emt 0:00:30]} 24. Qg6# {[%emt 0:00:30]} 1-0

[Event "Skalica SCHAEFFLER Open 2019"]
[Site "Skalica"]
[Date "2019.08.31"]
[Round "9.5"]
[White "Podskubka, Ondrej"]
[Black "Vach, Jozef"]
[Result "1-0"]
[ECO "D02"]
[WhiteElo "1684"]
[BlackElo "1722"]
[Annotator "NA"]
[PlyCount "45"]
[EventDate "2019.08.25"]
[EventType "swiss"]
[EventCountry "SVK"]
[SourceTitle "playchess.com"]
[Source "ChessBase"]
[SourceQuality "1"]
[TimeControl "40/5400+30:1800+30"]

1. d4 {[%emt 1:30:30]} d5 {[%emt 1:30:30]} 2. Bf4 {[%emt 0:00:30]} c6 {[%emt 0:00:30]} 3. Nf3 {[%emt 0:00:30]} Nf6 {[%emt 0:00:30]} 4. e3 {[%emt 0:00:30]} g6 {[%emt 0:00:30]} 5. h3 {[%emt 0:00:30]} Bg7 {[%emt 0:00:30]} 6. Bd3 {[%emt 0:00:30]} O-O {[%emt 0:00:30]} 7. c3 {[%emt 0:00:30]} Nbd7 {[%emt 0:00:30]} 8. Nbd2 {[%emt 0:00:30]} Qb6 {[%emt 0:00:30]} 9. Qc2 {[%emt 0:00:30]} c5 {[%emt 0:00:30]} 10. O-O {[%emt 0:00:30]} c4 {[%emt 0:00:30]} 11. Be2 {[%emt 0:00:30]} Qc6 {[%emt 0:00:30]} 12. Rfe1 {[%emt 0:00:30]} b5 {[%emt 0:00:30]} 13. Bf1 {[%emt 0:00:30]} Ne4 {[%emt 0:00:30]} 14. Nxe4 {[%emt 0:00:30]} dxe4 {[%emt 0:00:30]} 15. Nd2 {[%emt 0:00:30]} f5 {[%emt 0:00:30]} 16. a4 {[%emt 0:00:30]} Nf6 {[%emt 0:00:30]} 17. axb5 {[%emt 0:00:30]} Qxb5 {[%emt 0:00:30]} 18. Bxc4+ {[%emt 0:00:30]} Qxc4 {[%emt 0:00:30]} 19. Nxc4 {[%emt 0:00:30]} Bd7 {[%emt 0:00:30]} 20. Ne5 {[%emt 0:00:30]} Be6 {[%emt 0:00:30]} 21. Ra6 {[%emt 0:00:30]} Bd5 {[%emt 0:00:30]} 22. Rea1 {[%emt 0:00:30]} e6 {[%emt 0:00:30]} 23. c4 {[%emt 0:00:30]} 1-0

[Event "Skalica SCHAEFFLER Open 2019"]
[Site "Skalica"]
[Date "2019.08.31"]
[Round "9.6"]
[White "Londin, Martin"]
[Black "Vlcek, Antonin"]
[Result "0-1"]
[ECO "C50"]
[WhiteElo "1930"]
[BlackElo "1686"]
[Annotator "NA"]
[PlyCount "31"]
[EventDate "2019.08.25"]
[EventType "swiss"]
[EventCountry "SVK"]
[SourceTitle "playchess.com"]
[Source "ChessBase"]
[SourceQuality "1"]
[TimeControl "40/5400+30:1800+30"]

1. e4 {[%emt 0:00:00]} e5 {[%emt 0:00:00]} 2. Nf3 {[%emt 0:00:00]} Nc6 {[%emt 0:00:00]} 3. d4 {[%emt 0:00:00]} exd4 {[%emt 0:00:02]} 4. Bc4 {[%emt 0:00:00]} Be7 {[%emt 0:02:26]} 5. c3 {[%emt 0:00:00]} Na5 {[%emt 0:01:28]} 6. Qxd4 {[%emt 0:05:58]} Nxc4 {[%emt 0:03:59]} 7. Qxc4 {[%emt 0:00:17]} Nf6 {[%emt 0:04:49]} 8. e5 {[%emt 0:00:22]} d5 {[%emt 0:00:26]} 9. Qb5+ {[%emt 0:01:10]} c6 {[%emt 0:02:25]} 10. Qe2 {[%emt 0:03:58]} Ne4 {[%emt 0:02:04]} 11. Nbd2 {[%emt 0:00:15]} Bf5 {[%emt 0:03:21]} 12. Nd4 {[%emt 0:02:35]} Bg6 {[%emt 0:01:25]} 13. f3 {[%emt 0:01:21]} Bh4+ {[%emt 0:00:45]} 14. g3 {[%emt 0:02:36]} Bxg3+ {[%emt 0:00:25]} 15. Kd1 {[%emt 0:02:50]} Nf2+ {[%emt 0:01:01]} 16. Ke1 {[%emt 0:02:19]} 0-1

[Event "Skalica SCHAEFFLER Open 2019"]
[Site "Skalica"]
[Date "2019.08.31"]
[Round "9.7"]
[White "Bartos, Bohumil"]
[Black "Gres, Michal"]
[Result "1-0"]
[ECO "D10"]
[WhiteElo "1548"]
[BlackElo "1410"]
[Annotator "NA"]
[PlyCount "49"]
[EventDate "2019.08.25"]
[EventType "swiss"]
[EventCountry "SVK"]
[SourceTitle "playchess.com"]
[Source "ChessBase"]
[SourceQuality "1"]
[TimeControl "40/5400+30:1800+30"]

1. d4 {[%emt 1:30:30]} d5 {[%emt 1:30:30]} 2. Bf4 {[%emt 0:00:30]} Nf6 {[%emt 0:00:30]} 3. e3 {[%emt 0:00:30]} Bf5 {[%emt 0:00:30]} 4. c4 {[%emt 0:00:30]} c6 {[%emt 0:00:30]} 5. Nf3 {[%emt 0:00:30]} Nbd7 {[%emt 0:00:30]} 6. Qb3 {[%emt 0:00:30]} b6 {[%emt 0:00:30]} 7. Nc3 {[%emt 0:00:30]} e6 {[%emt 0:00:30]} 8. Rc1 {[%emt 0:00:30]} Rc8 {[%emt 0:00:30]} 9. cxd5 {[%emt 0:00:30]} cxd5 {[%emt 0:00:30]} 10. Ba6 {[%emt 0:00:30]} Rc6 {[%emt 0:00:30]} 11. Qa4 {[%emt 0:00:30]} Qa8 {[%emt 0:00:30]} 12. Bb5 {[%emt 0:00:30]} Rc8 {[%emt 0:00:30]} 13. Ne5 {[%emt 0:00:30]} Rd8 {[%emt 0:00:30]} 14. Bg5 {[%emt 0:00:30]} Qb7 {[%emt 0:00:30]} 15. Bxf6 {[%emt 0:00:30]} gxf6 {[%emt 0:00:30]} 16. Nxd7 {[%emt 0:00:30]} Rxd7 {[%emt 0:00:30]} 17. O-O {[%emt 0:00:30]} Rg8 {[%emt 0:00:30]} 18. Bxd7+ {[%emt 0:00:30]} Qxd7 {[%emt 0:00:30]} 19. Qxd7+ {[%emt 0:00:30]} Kxd7 {[%emt 0:00:30]} 20. Ne2 {[%emt 0:00:30]} Bd3 {[%emt 0:00:30]} 21. Rfe1 {[%emt 0:00:30]} Bb4 {[%emt 0:00:30]} 22. Nc3 {[%emt 0:00:30]} Be4 {[%emt 0:00:30]} 23. Nxe4 {[%emt 0:00:30]} dxe4 {[%emt 0:00:30]} 24. Red1 {[%emt 0:00:30]} Kd6 {[%emt 0:00:30]} 25. a3 {[%emt 0:00:30]} 1-0

[Event "Skalica SCHAEFFLER Open 2019"]
[Site "Skalica"]
[Date "2019.08.31"]
[Round "9.8"]
[White "Novomeska, Karin"]
[Black "Delgerdalai, Bayarjavkhlan"]
[Result "1/2-1/2"]
[ECO "D35"]
[WhiteElo "1269"]
[BlackElo "1460"]
[Annotator "NA"]
[PlyCount "35"]
[EventDate "2019.08.25"]
[EventType "swiss"]
[EventCountry "SVK"]
[SourceTitle "playchess.com"]
[Source "ChessBase"]
[SourceQuality "1"]
[TimeControl "40/5400+30:1800+30"]

1. d4 {[%emt 1:30:30]} d5 {[%emt 1:30:30]} 2. c4 {[%emt 0:00:30]} c6 {[%emt 0:00:30]} 3. Nc3 {[%emt 0:00:30]} Nf6 {[%emt 0:00:30]} 4. Nf3 {[%emt 0:00:30]} Bf5 {[%emt 0:00:30]} 5. Bg5 {[%emt 0:00:30]} e6 {[%emt 0:00:30]} 6. e3 {[%emt 0:00:30]} Nbd7 {[%emt 0:00:30]} 7. cxd5 {[%emt 0:00:30]} exd5 {[%emt 0:00:30]} 8. Be2 {[%emt 0:00:30]} Be7 {[%emt 0:00:30]} 9. O-O {[%emt 0:00:30]} O-O {[%emt 0:00:30]} 10. Qb3 {[%emt 0:00:30]} Qb6 {[%emt 0:00:30]} 11. Qxb6 {[%emt 0:00:30]} Nxb6 {[%emt 0:00:30]} 12. Rac1 {[%emt 0:00:30]} h6 {[%emt 0:00:30]} 13. Bxf6 {[%emt 0:00:30]} Bxf6 {[%emt 0:00:30]} 14. Rfd1 {[%emt 0:00:30]} Rfe8 {[%emt 0:00:30]} 15. Bd3 {[%emt 0:00:30]} Bxd3 {[%emt 0:00:30]} 16. Rxd3 {[%emt 0:00:30]} Nc4 {[%emt 0:00:30]} 17. Rc2 {[%emt 0:00:30]} Nb6 {[%emt 0:00:30]} 18. Nd2 {[%emt 0:00:30]} 1/2-1/2

[Event "Skalica SCHAEFFLER Open 2019"]
[Site "Skalica"]
[Date "2019.08.31"]
[Round "9.9"]
[White "Kozusnik, Roman"]
[Black "Visvader, Kristof"]
[Result "1/2-1/2"]
[ECO "D46"]
[WhiteElo "1231"]
[BlackElo "1389"]
[Annotator "NA"]
[PlyCount "74"]
[EventDate "2019.08.25"]
[EventType "swiss"]
[EventCountry "SVK"]
[SourceTitle "playchess.com"]
[Source "ChessBase"]
[SourceQuality "1"]
[TimeControl "40/5400+30:1800+30"]

1. d4 {[%emt 0:00:00]} d5 {[%emt 0:00:00]} 2. c4 {[%emt 0:00:00]} e6 {[%emt 0:00:04]} 3. e3 {[%emt 0:00:00]} Nf6 {[%emt 0:00:12]} 4. Nc3 {[%emt 0:00:06]} c6 {[%emt 0:00:24]} 5. Bd3 {[%emt 0:00:45]} Nbd7 {[%emt 0:00:28]} 6. Nf3 {[%emt 0:03:04]} Bb4 {[%emt 0:03:16]} 7. Bd2 {[%emt 0:01:29]} Bxc3 {[%emt 0:01:40]} 8. Bxc3 {[%emt 0:00:29]} dxc4 {[%emt 0:00:07]} 9. Bxc4 {[%emt 0:00:49]} Nb6 {[%emt 0:09:01]} 10. b3 {[%emt 0:10:24]} Nfd5 {[%emt 0:02:15]} 11. Bd2 {[%emt 0:02:47]} Qf6 {[%emt 0:08:42]} 12. O-O {[%emt 0:05:27]} h6 {[%emt 0:17:06]} 13. Qc1 {[%emt 0:42:09]} g5 {[%emt 0:07:20]} 14. Re1 {[%emt 0:02:50]} Bd7 {[%emt 0:03:02]} 15. e4 {[%emt 0:00:30]} Ne7 {[%emt 0:00:30]} 16. Bc3 {[%emt 0:00:30]} Qf4 {[%emt 0:00:30]} 17. Bd2 {[%emt 0:00:30]} Qf6 {[%emt 0:00:30]} 18. Bd3 {[%emt 0:00:30]} g4 {[%emt 0:00:30]} 19. Ne5 {[%emt 0:00:30]} h5 {[%emt 0:00:30]} 20. Re3 {[%emt 0:00:30]} Ng6 {[%emt 0:00:30]} 21. Nxg6 {[%emt 0:02:15]} fxg6 {[%emt 0:00:10]} 22. Qc5 {[%emt 0:01:15]} Rf8 {[%emt 0:01:34]} 23. Rf1 {[%emt 0:00:28]} Qe7 {[%emt 0:00:17]} 24. e5 {[%emt 0:01:35]} Rg8 {[%emt 0:03:21]} 25. Qxe7+ {[%emt 0:04:03]} Kxe7 {[%emt 0:00:15]} 26. Bb4+ {[%emt 0:00:26]} Ke8 {[%emt 0:00:11]} 27. Re4 {[%emt 0:00:10]} Nd5 {[%emt 0:01:07]} 28. Bd2 {[%emt 0:02:16]} Ne7 {[%emt 0:03:06]} 29. f3 {[%emt 0:01:56]} gxf3 {[%emt 0:00:58]} 30. Rxf3 {[%emt 0:00:02]} Rf8 {[%emt 0:02:43]} 31. Rxf8+ {[%emt 0:01:18]} Kxf8 {[%emt 0:00:19]} 32. Bb4 {[%emt 0:01:34]} a5 {[%emt 0:02:57]} 33. Rf4+ {[%emt 0:00:37]} Ke8 {[%emt 0:00:24]} 34. Bxe7 {[%emt 0:02:43]} Kxe7 {[%emt 0:00:09]} 35. Bxg6 {[%emt 0:00:03]} Be8 {[%emt 0:00:13]} 36. Bd3 {[%emt 0:02:06]} Rd8 {[%emt 0:00:50]} 37. Bb1 {[%emt 0:02:22]} Rd5 {[%emt 0:00:35]} 1/2-1/2

[Event "Skalica SCHAEFFLER Open 2019"]
[Site "Skalica"]
[Date "2019.08.31"]
[Round "9.10"]
[White "Tutkova, Ludmila"]
[Black "Drabek, Martin"]
[Result "1/2-1/2"]
[ECO "C50"]
[WhiteElo "1085"]
[BlackElo "1381"]
[Annotator "NA"]
[PlyCount "98"]
[EventDate "2019.08.25"]
[EventType "swiss"]
[EventCountry "SVK"]
[SourceTitle "playchess.com"]
[Source "ChessBase"]
[SourceQuality "1"]
[TimeControl "40/5400+30:1800+30"]

1. e4 {[%emt 0:00:00]} e5 {[%emt 0:00:00]} 2. Nf3 {[%emt 0:00:00]} Nc6 {[%emt 0:00:00]} 3. Bc4 {[%emt 0:00:47]} Bc5 {[%emt 0:00:19]} 4. O-O {[%emt 0:00:00]} Nf6 {[%emt 0:00:26]} 5. Re1 {[%emt 0:00:13]} h6 {[%emt 0:00:37]} 6. c3 {[%emt 0:00:14]} d6 {[%emt 0:01:12]} 7. h3 {[%emt 0:00:16]} Be6 {[%emt 0:01:33]} 8. Bxe6 {[%emt 0:00:45]} fxe6 {[%emt 0:00:08]} 9. d4 {[%emt 0:00:13]} exd4 {[%emt 0:00:50]} 10. Nxd4 {[%emt 0:01:30]} Nxd4 {[%emt 0:01:59]} 11. cxd4 {[%emt 0:01:09]} Bb6 {[%emt 0:01:43]} 12. Nc3 {[%emt 0:02:04]} a6 {[%emt 0:01:22]} 13. Be3 {[%emt 0:04:17]} O-O {[%emt 0:03:50]} 14. e5 {[%emt 0:03:33]} Nd5 {[%emt 0:04:02]} 15. Nxd5 {[%emt 0:01:37]} exd5 {[%emt 0:00:30]} 16. Qg4 {[%emt 0:02:48]} Kh8 {[%emt 0:02:03]} 17. e6 {[%emt 0:01:23]} Qf6 {[%emt 0:01:02]} 18. e7 {[%emt 0:04:39]} Qxe7 {[%emt 0:04:12]} 19. Bxh6 {[%emt 0:10:05]} Qf7 {[%emt 0:25:44]} 20. Be3 {[%emt 0:01:55]} Rae8 {[%emt 0:00:30]} 21. Rad1 {[%emt 0:00:30]} Re4 {[%emt 0:00:30]} 22. Qg3 {[%emt 0:00:30]} Qf6 {[%emt 0:00:30]} 23. b3 {[%emt 0:00:30]} Bxd4 {[%emt 0:00:30]} 24. Bxd4 {[%emt 0:00:30]} Rxd4 {[%emt 0:00:30]} 25. Rxd4 {[%emt 0:00:30]} Qxd4 {[%emt 0:00:30]} 26. Re7 {[%emt 0:00:30]} Qf6 {[%emt 0:00:30]} 27. Rxc7 {[%emt 0:00:30]} Rf7 {[%emt 0:01:05]} 28. Rxf7 {[%emt 0:00:25]} Qxf7 {[%emt 0:00:08]} 29. Qxd6 {[%emt 0:00:28]} Kh7 {[%emt 0:01:17]} 30. a4 {[%emt 0:01:19]} Qf5 {[%emt 0:02:02]} 31. Qb6 {[%emt 0:01:59]} Qd7 {[%emt 0:02:23]} 32. Qd4 {[%emt 0:01:23]} Qc6 {[%emt 0:03:26]} 33. f4 {[%emt 0:02:51]} Kg8 {[%emt 0:01:55]} 34. f5 {[%emt 0:02:06]} b6 {[%emt 0:01:08]} 35. Qe5 {[%emt 0:01:06]} Qc5+ {[%emt 0:01:55]} 36. Kh2 {[%emt 0:00:19]} d4 {[%emt 0:00:48]} 37. Qe8+ {[%emt 0:01:19]} Kh7 {[%emt 0:02:12]} 38. f6 {[%emt 0:01:06]} Qd6+ {[%emt 0:01:46]} 39. Kh1 {[%emt 0:00:11]} Qxf6 {[%emt 0:00:58]} 40. Qe4+ {[%emt 0:00:13]} Kh6 {[%emt 0:06:07]} 41. Qd3 {[%emt 0:30:42]} a5 {[%emt 0:43:20]} 42. b4 {[%emt 0:01:44]} Qe5 {[%emt 0:00:30]} 43. bxa5 {[%emt 0:00:02]} bxa5 {[%emt 0:00:45]} 44. Qd2+ {[%emt 0:01:12]} Kh7 {[%emt 0:01:19]} 45. Qc2+ {[%emt 0:00:43]} Kg8 {[%emt 0:02:23]} 46. Qc4+ {[%emt 0:01:24]} Kf8 {[%emt 0:01:19]} 47. Qc8+ {[%emt 0:00:00]} Kf7 {[%emt 0:01:05]} 48. Qb7+ {[%emt 0:00:19]} Kf6 {[%emt 0:01:00]} 49. Qf3+ {[%emt 0:01:21]} Ke6 {[%emt 0:04:13]} 1/2-1/2